[Event "Titled Tuesday Blitz June 20 Late 2023"]
[White "Calhoun, Luke"]
[Black "Amburgy, Ryan"]
[WhiteFideId "2064421"]
[BlackFideId "30924820"]
[WhiteElo "2255"]
[BlackElo "2134"]
[Result "0-1"]
[Round "2"]
[TimeControl "180+2"]
[Date "2023.06.20"]
[WhiteClock "0:00:31"]
[BlackClock "0:00:55"]
[Board "87"]

1. Nf3 {[%clk 0:02:59]}  d5 {[%clk 0:03:00]} 2. g3 {[%clk 0:02:59]}  g6 {[%clk 0:02:59]} 3. Bg2 {[%clk 0:03:00]}  Bg7 {[%clk 0:03:00]} 4. O-O {[%clk 0:03:00]}  Nf6 {[%clk 0:03:00]} 5. b3 {[%clk 0:03:00]}  c5 {[%clk 0:03:00]} 6. Bb2 {[%clk 0:03:00]}  O-O {[%clk 0:02:59]} 7. c4 {[%clk 0:02:59]}  d4 {[%clk 0:02:59]} 8. b4 {[%clk 0:03:00]}  a5 {[%clk 0:02:59]} 9. bxc5 {[%clk 0:02:59]}  Nc6 {[%clk 0:02:59]} 10. d3 {[%clk 0:02:57]}  e5 {[%clk 0:02:56]} 11. Na3 {[%clk 0:02:53]}  Nd7 {[%clk 0:02:31]} 12. Nb5 {[%clk 0:02:49]}  Nxc5 {[%clk 0:02:09]} 13. Ba3 {[%clk 0:02:49]}  Nb4 {[%clk 0:02:09]} 14. Rb1 {[%clk 0:02:46]}  Bd7 {[%clk 0:02:04]} 15. Bxb4 {[%clk 0:02:45]}  axb4 {[%clk 0:02:05]} 16. Rxb4 {[%clk 0:02:45]}  Rxa2 {[%clk 0:02:05]} 17. Nd6 {[%clk 0:02:39]}  Bc6 {[%clk 0:02:00]} 18. Nb5 {[%clk 0:02:31]}  Qa5 {[%clk 0:01:52]} 19. Rb1 {[%clk 0:02:26]}  Na4 {[%clk 0:01:40]} 20. Ra1 {[%clk 0:02:05]}  Nc3 {[%clk 0:01:36]} 21. Rxa2 {[%clk 0:02:04]}  Qxa2 {[%clk 0:01:37]} 22. Nxc3 {[%clk 0:02:02]}  dxc3 {[%clk 0:01:38]} 23. Qa1 {[%clk 0:01:55]}  Qxe2 {[%clk 0:01:27]} 24. Qd1 {[%clk 0:01:19]}  Qxd1 {[%clk 0:01:12]} 25. Rxd1 {[%clk 0:01:20]}  e4 {[%clk 0:01:12]} 26. Ne1 {[%clk 0:01:07]}  Rd8 {[%clk 0:01:10]} 27. Bf1 {[%clk 0:01:02]}  Ba4 {[%clk 0:00:57]} 28. Ra1 {[%clk 0:00:59]}  c2 {[%clk 0:00:55]} 29. Rc1 {[%clk 0:00:39]}  Bh6 {[%clk 0:00:55]} 30. Rxc2 {[%clk 0:00:34]}  Bxc2 {[%clk 0:00:55]} 31. Nxc2 {[%clk 0:00:35]}  exd3 {[%clk 0:00:56]} 32. Ne3 {[%clk 0:00:31]}  Bxe3 {[%clk 0:00:55]} 0-1


[Site "https://www.chess.com"]

[Event "Titled Tuesday Blitz June 20 Late 2023"]
[White "Novikov, Evgenij"]
[Black "Henriquez Villagra, Cristobal"]
[WhiteFideId "4125380"]
[BlackFideId "3409350"]
[WhiteElo "2242"]
[BlackElo "2542"]
[Result "0-1"]
[Round "2"]
[TimeControl "180+2"]
[Date "2023.06.20"]
[WhiteClock "0:00:00"]
[BlackClock "0:00:13"]
[Board "93"]

1. d4 {[%clk 0:03:00]}  d6 {[%clk 0:02:58]} 2. c4 {[%clk 0:03:01]}  e5 {[%clk 0:02:54]} 3. Nf3 {[%clk 0:02:58]}  e4 {[%clk 0:02:52]} 4. Nfd2 {[%clk 0:02:58]}  f5 {[%clk 0:02:52]} 5. e3 {[%clk 0:02:53]}  Nf6 {[%clk 0:02:52]} 6. Nc3 {[%clk 0:02:53]}  g6 {[%clk 0:02:49]} 7. Qc2 {[%clk 0:02:53]}  Bg7 {[%clk 0:02:49]} 8. b4 {[%clk 0:02:51]}  O-O {[%clk 0:02:48]} 9. Bb2 {[%clk 0:02:51]}  c6 {[%clk 0:02:45]} 10. g3 {[%clk 0:02:43]}  d5 {[%clk 0:02:44]} 11. Bg2 {[%clk 0:02:39]}  Be6 {[%clk 0:02:38]} 12. c5 {[%clk 0:02:39]}  Nbd7 {[%clk 0:02:33]} 13. a4 {[%clk 0:02:37]}  Qe7 {[%clk 0:02:33]} 14. Ba3 {[%clk 0:02:32]}  g5 {[%clk 0:02:33]} 15. h4 {[%clk 0:02:31]}  h6 {[%clk 0:02:33]} 16. hxg5 {[%clk 0:02:30]}  hxg5 {[%clk 0:02:34]} 17. b5 {[%clk 0:02:29]}  f4 {[%clk 0:02:29]} 18. gxf4 {[%clk 0:02:27]}  gxf4 {[%clk 0:02:28]} 19. O-O-O {[%clk 0:02:22]}  Ng4 {[%clk 0:02:16]} 20. Ndxe4 {[%clk 0:01:53]}  dxe4 {[%clk 0:02:15]} 21. Bxe4 {[%clk 0:01:54]}  Rf7 {[%clk 0:01:34]} 22. bxc6 {[%clk 0:01:47]}  bxc6 {[%clk 0:01:34]} 23. Bxc6 {[%clk 0:01:48]}  Rb8 {[%clk 0:01:26]} 24. Nb5 {[%clk 0:01:39]}  fxe3 {[%clk 0:01:14]} 25. fxe3 {[%clk 0:01:20]}  Qg5 {[%clk 0:01:05]} 26. Qh7+ {[%clk 0:01:05]}  Kf8 {[%clk 0:01:01]} 27. Rdf1 {[%clk 0:01:05]}  Qxe3+ {[%clk 0:00:57]} 28. Kc2 {[%clk 0:00:40]}  Qb3+ {[%clk 0:00:45]} 29. Kd2 {[%clk 0:00:36]}  Rxb5 {[%clk 0:00:44]} 30. Rxf7+ {[%clk 0:00:31]}  Bxf7 {[%clk 0:00:42]} 31. Bxb5 {[%clk 0:00:26]}  Qxa3 {[%clk 0:00:36]} 32. Qe4 {[%clk 0:00:20]}  Qb2+ {[%clk 0:00:33]} 33. Ke1 {[%clk 0:00:18]}  Qf2+ {[%clk 0:00:29]} 34. Kd1 {[%clk 0:00:18]}  Ndf6 {[%clk 0:00:17]} 35. Qa8+ {[%clk 0:00:16]}  Be8 {[%clk 0:00:18]} 36. Re1 {[%clk 0:00:14]}  Ne3+ {[%clk 0:00:18]} 37. Rxe3 {[%clk 0:00:13]}  Qxe3 {[%clk 0:00:18]} 38. Bxe8 {[%clk 0:00:12]}  Qxd4+ {[%clk 0:00:19]} 39. Ke1 {[%clk 0:00:11]}  Qe5+ {[%clk 0:00:19]} 40. Kf1 {[%clk 0:00:11]}  Qf5+ {[%clk 0:00:19]} 41. Ke1 {[%clk 0:00:10]}  Nxe8 {[%clk 0:00:19]} 42. Qxa7 {[%clk 0:00:10]}  Bc3+ {[%clk 0:00:17]} 43. Ke2 {[%clk 0:00:11]}  Qe4+ {[%clk 0:00:17]} 44. Kf1 {[%clk 0:00:11]}  Qf3+ {[%clk 0:00:17]} 45. Kg1 {[%clk 0:00:11]}  Bd4+ {[%clk 0:00:18]} 46. Kh2 {[%clk 0:00:12]}  Be5+ {[%clk 0:00:18]} 47. Kg1 {[%clk 0:00:12]}  Bg3 {[%clk 0:00:17]} 48. c6 {[%clk 0:00:10]}  Qxc6 {[%clk 0:00:17]} 49. Qd4 {[%clk 0:00:08]}  Bd6 {[%clk 0:00:16]} 50. Qf2+ {[%clk 0:00:08]}  Ke7 {[%clk 0:00:16]} 51. Qe2+ {[%clk 0:00:07]}  Kd8 {[%clk 0:00:16]} 52. Kf1 {[%clk 0:00:06]}  Qxa4 {[%clk 0:00:16]} 53. Kf2 {[%clk 0:00:05]}  Qd7 {[%clk 0:00:16]} 54. Qf3 {[%clk 0:00:05]}  Qe6 {[%clk 0:00:16]} 55. Qe2 {[%clk 0:00:04]}  Qh6 {[%clk 0:00:15]} 56. Qf3 {[%clk 0:00:04]}  Nf6 {[%clk 0:00:15]} 57. Qa8+ {[%clk 0:00:03]}  Ke7 {[%clk 0:00:16]} 58. Qb7+ {[%clk 0:00:04]}  Ke6 {[%clk 0:00:16]} 59. Qb3+ {[%clk 0:00:04]}  Nd5 {[%clk 0:00:17]} 60. Qf3 {[%clk 0:00:03]}  Bc5+ {[%clk 0:00:17]} 61. Ke2 {[%clk 0:00:03]}  Nf4+ {[%clk 0:00:17]} 62. Kd1 {[%clk 0:00:02]}  Qg5 {[%clk 0:00:15]} 63. Qe4+ {[%clk 0:00:03]}  Kd6 {[%clk 0:00:15]} 64. Qc2 {[%clk 0:00:01]}  Qg1+ {[%clk 0:00:14]} 65. Kd2 {[%clk 0:00:00]}  Bb4+ {[%clk 0:00:13]} 0-1


[Site "https://www.chess.com"]

[Event "Titled Tuesday Blitz June 20 Late 2023"]
[White "Cardoso Cardoso, Jose Gabriel"]
[Black "Namitbir Singh Walia"]
[WhiteFideId "4430492"]
[BlackFideId "35071068"]
[WhiteElo "2484"]
[BlackElo "2239"]
[Result "1-0"]
[Round "2"]
[TimeControl "180+2"]
[Date "2023.06.20"]
[WhiteClock "0:00:08"]
[BlackClock "0:00:10"]
[Board "94"]

1. e4 {[%clk 0:03:00]}  e5 {[%clk 0:02:59]} 2. Nf3 {[%clk 0:03:01]}  Nc6 {[%clk 0:03:00]} 3. Bb5 {[%clk 0:03:01]}  a6 {[%clk 0:03:00]} 4. Ba4 {[%clk 0:03:01]}  Nf6 {[%clk 0:03:00]} 5. O-O {[%clk 0:03:01]}  Be7 {[%clk 0:03:00]} 6. Re1 {[%clk 0:03:01]}  b5 {[%clk 0:03:01]} 7. Bb3 {[%clk 0:03:02]}  d6 {[%clk 0:03:01]} 8. c3 {[%clk 0:03:02]}  O-O {[%clk 0:03:02]} 9. h3 {[%clk 0:03:03]}  Nb8 {[%clk 0:03:02]} 10. d4 {[%clk 0:03:03]}  Nbd7 {[%clk 0:03:03]} 11. Nbd2 {[%clk 0:03:03]}  Bb7 {[%clk 0:03:04]} 12. Bc2 {[%clk 0:03:03]}  Re8 {[%clk 0:03:04]} 13. Nf1 {[%clk 0:03:03]}  Bf8 {[%clk 0:03:04]} 14. Ng3 {[%clk 0:03:03]}  g6 {[%clk 0:03:05]} 15. a4 {[%clk 0:03:03]}  Bg7 {[%clk 0:03:05]} 16. Bd3 {[%clk 0:02:59]}  exd4 {[%clk 0:03:06]} 17. cxd4 {[%clk 0:02:52]}  c5 {[%clk 0:03:06]} 18. axb5 {[%clk 0:02:29]}  axb5 {[%clk 0:02:53]} 19. Rxa8 {[%clk 0:02:30]}  Bxa8 {[%clk 0:02:53]} 20. Bg5 {[%clk 0:02:19]}  Qb6 {[%clk 0:02:36]} 21. d5 {[%clk 0:01:51]}  c4 {[%clk 0:02:14]} 22. Bc2 {[%clk 0:01:45]}  Nc5 {[%clk 0:02:14]} 23. Be3 {[%clk 0:01:24]}  Qc7 {[%clk 0:02:10]} 24. Bd4 {[%clk 0:01:23]}  Bb7 {[%clk 0:02:03]} 25. Qd2 {[%clk 0:01:17]}  Na6 {[%clk 0:00:46]} 26. Nh4 {[%clk 0:01:09]}  Bc8 {[%clk 0:00:42]} 27. Qg5 {[%clk 0:00:56]}  Qe7 {[%clk 0:00:41]} 28. Nf3 {[%clk 0:00:43]}  Nd7 {[%clk 0:00:24]} 29. Qd2 {[%clk 0:00:34]}  Ne5 {[%clk 0:00:24]} 30. Nxe5 {[%clk 0:00:27]}  Bxe5 {[%clk 0:00:25]} 31. f4 {[%clk 0:00:25]}  Bxd4+ {[%clk 0:00:24]} 32. Qxd4 {[%clk 0:00:26]}  Qh4 {[%clk 0:00:24]} 33. Qf2 {[%clk 0:00:24]}  Nc5 {[%clk 0:00:23]} 34. e5 {[%clk 0:00:21]}  dxe5 {[%clk 0:00:23]} 35. fxe5 {[%clk 0:00:22]}  Bb7 {[%clk 0:00:21]} 36. Kh2 {[%clk 0:00:20]}  Nd3 {[%clk 0:00:19]} 37. Bxd3 {[%clk 0:00:20]}  cxd3 {[%clk 0:00:20]} 38. e6 {[%clk 0:00:18]}  fxe6 {[%clk 0:00:19]} 39. dxe6 {[%clk 0:00:19]}  Qe7 {[%clk 0:00:17]} 40. Qd2 {[%clk 0:00:10]}  Qd6 {[%clk 0:00:17]} 41. Re3 {[%clk 0:00:09]}  Rxe6 {[%clk 0:00:16]} 42. Rxd3 {[%clk 0:00:10]}  Qe5 {[%clk 0:00:13]} 43. Rd8+ {[%clk 0:00:09]}  Re8 {[%clk 0:00:14]} 44. Rd7 {[%clk 0:00:07]}  Bc6 {[%clk 0:00:13]} 45. Rd6 {[%clk 0:00:07]}  Ba8 {[%clk 0:00:12]} 46. b4 {[%clk 0:00:05]}  Rf8 {[%clk 0:00:12]} 47. Rd8 {[%clk 0:00:04]}  Qf6 {[%clk 0:00:09]} 48. Rxa8 {[%clk 0:00:03]}  Rxa8 {[%clk 0:00:08]} 49. Qd5+ {[%clk 0:00:03]}  Kg7 {[%clk 0:00:08]} 50. Qxa8 {[%clk 0:00:04]}  Qd4 {[%clk 0:00:08]} 51. Qb7+ {[%clk 0:00:04]}  Kh6 {[%clk 0:00:08]} 52. Qxb5 {[%clk 0:00:04]}  Kg7 {[%clk 0:00:08]} 53. Qb7+ {[%clk 0:00:04]}  Kf6 {[%clk 0:00:09]} 54. Qe4 {[%clk 0:00:04]}  Qd6 {[%clk 0:00:08]} 55. b5 {[%clk 0:00:04]}  h5 {[%clk 0:00:08]} 56. Qc6 {[%clk 0:00:04]}  Ke6 {[%clk 0:00:08]} 57. Qxd6+ {[%clk 0:00:04]}  Kxd6 {[%clk 0:00:09]} 58. Nxh5 {[%clk 0:00:04]}  gxh5 {[%clk 0:00:09]} 59. g4 {[%clk 0:00:05]}  hxg4 {[%clk 0:00:09]} 60. hxg4 {[%clk 0:00:05]}  Kc5 {[%clk 0:00:09]} 61. g5 {[%clk 0:00:06]}  Kxb5 {[%clk 0:00:10]} 62. g6 {[%clk 0:00:07]}  Kc6 {[%clk 0:00:10]} 63. g7 {[%clk 0:00:08]} 1-0


[Site "https://www.chess.com"]

[Event "Titled Tuesday Blitz June 20 Late 2023"]
[White "Bordi, Kevin"]
[Black "Szyszylo, Rafal"]
[WhiteFideId "621862"]
[BlackFideId "1109626"]
[WhiteElo "2794"]
[BlackElo "1951"]
[Result "1-0"]
[Round "2"]
[TimeControl "180+2"]
[Date "2023.06.20"]
[WhiteClock "0:02:02"]
[BlackClock "0:00:00"]
[Board "95"]

1. e4 {[%clk 0:03:00]}  d6 {[%clk 0:02:58]} 2. d4 {[%clk 0:03:01]}  Nf6 {[%clk 0:02:56]} 3. Nc3 {[%clk 0:03:01]}  g6 {[%clk 0:02:56]} 4. g3 {[%clk 0:03:01]}  Bg7 {[%clk 0:02:55]} 5. Bg2 {[%clk 0:03:02]}  O-O {[%clk 0:02:55]} 6. Nge2 {[%clk 0:03:02]}  e5 {[%clk 0:02:56]} 7. dxe5 {[%clk 0:03:02]}  dxe5 {[%clk 0:02:56]} 8. Qxd8 {[%clk 0:03:03]}  Rxd8 {[%clk 0:02:55]} 9. Bg5 {[%clk 0:03:04]}  c6 {[%clk 0:02:55]} 10. O-O {[%clk 0:03:04]}  h6 {[%clk 0:02:50]} 11. Be3 {[%clk 0:03:04]}  Ng4 {[%clk 0:02:47]} 12. Bc5 {[%clk 0:03:02]}  Na6 {[%clk 0:02:45]} 13. Be7 {[%clk 0:03:00]}  Re8 {[%clk 0:02:45]} 14. Ba3 {[%clk 0:03:00]}  Bf8 {[%clk 0:02:42]} 15. Bxf8 {[%clk 0:02:59]}  Kxf8 {[%clk 0:02:43]} 16. h3 {[%clk 0:02:59]}  Nf6 {[%clk 0:02:43]} 17. Rfd1 {[%clk 0:02:59]}  Be6 {[%clk 0:02:30]} 18. a3 {[%clk 0:02:59]}  Rad8 {[%clk 0:02:29]} 19. f3 {[%clk 0:02:59]}  Ke7 {[%clk 0:02:28]} 20. Kf2 {[%clk 0:02:59]}  Rxd1 {[%clk 0:02:20]} 21. Rxd1 {[%clk 0:03:00]}  Rd8 {[%clk 0:02:20]} 22. Rxd8 {[%clk 0:03:00]}  Kxd8 {[%clk 0:02:21]} 23. Ke3 {[%clk 0:03:01]}  Ne8 {[%clk 0:02:12]} 24. f4 {[%clk 0:03:01]}  f6 {[%clk 0:02:12]} 25. g4 {[%clk 0:03:00]}  g5 {[%clk 0:02:07]} 26. fxe5 {[%clk 0:02:51]}  fxe5 {[%clk 0:02:05]} 27. Ng3 {[%clk 0:02:50]}  Nf6 {[%clk 0:02:03]} 28. Bf1 {[%clk 0:02:40]}  Nc5 {[%clk 0:01:50]} 29. b4 {[%clk 0:02:37]}  Ncd7 {[%clk 0:01:48]} 30. Na4 {[%clk 0:02:35]}  b6 {[%clk 0:01:47]} 31. Nb2 {[%clk 0:02:35]}  Kc7 {[%clk 0:01:25]} 32. Bc4 {[%clk 0:02:33]}  Kd6 {[%clk 0:00:59]} 33. Bxe6 {[%clk 0:02:32]}  Kxe6 {[%clk 0:01:00]} 34. Nc4 {[%clk 0:02:28]}  c5 {[%clk 0:00:54]} 35. b5 {[%clk 0:02:17]}  Ng8 {[%clk 0:00:36]} 36. Nf5 {[%clk 0:02:13]}  Ndf6 {[%clk 0:00:34]} 37. a4 {[%clk 0:02:07]}  h5 {[%clk 0:00:34]} 38. Ng7+ {[%clk 0:02:05]}  Kf7 {[%clk 0:00:33]} 39. Nxh5 {[%clk 0:02:06]}  Nxh5 {[%clk 0:00:33]} 40. gxh5 {[%clk 0:02:07]}  Nf6 {[%clk 0:00:33]} 41. Nxe5+ {[%clk 0:02:06]}  Ke6 {[%clk 0:00:31]} 42. Nc6 {[%clk 0:02:05]}  Nxh5 {[%clk 0:00:31]} 43. Nxa7 {[%clk 0:02:06]}  Nf4 {[%clk 0:00:32]} 44. Nc8 {[%clk 0:02:06]}  Nxh3 {[%clk 0:00:31]} 45. Nxb6 {[%clk 0:02:06]}  g4 {[%clk 0:00:18]} 46. Nd5 {[%clk 0:02:05]}  Kd6 {[%clk 0:00:10]} 47. a5 {[%clk 0:02:04]}  c4 {[%clk 0:00:05]} 48. a6 {[%clk 0:02:04]}  g3 {[%clk 0:00:03]} 49. Kf3 {[%clk 0:02:03]}  Ng5+ {[%clk 0:00:04]} 50. Kg2 {[%clk 0:02:01]}  Nxe4 {[%clk 0:00:00]} 51. a7 {[%clk 0:02:02]} 1-0


[Site "https://www.chess.com"]

[Event "Titled Tuesday Blitz June 20 Late 2023"]
[White "Ionescu, Mihai"]
[Black "Barp, Alberto"]
[WhiteFideId "1202499"]
[BlackFideId "872555"]
[WhiteElo "2279"]
[BlackElo "2313"]
[Result "0-1"]
[Round "2"]
[TimeControl "180+2"]
[Date "2023.06.20"]
[WhiteClock "0:00:34"]
[BlackClock "0:00:55"]
[Board "99"]

1. Nf3 {[%clk 0:03:00]}  d5 {[%clk 0:02:51]} 2. d4 {[%clk 0:03:00]}  Nf6 {[%clk 0:02:41]} 3. c4 {[%clk 0:03:01]}  e6 {[%clk 0:02:40]} 4. g3 {[%clk 0:03:00]}  dxc4 {[%clk 0:02:38]} 5. Bg2 {[%clk 0:03:00]}  b5 {[%clk 0:02:37]} 6. a4 {[%clk 0:02:59]}  c6 {[%clk 0:02:33]} 7. O-O {[%clk 0:02:57]}  Bb7 {[%clk 0:02:29]} 8. Ne5 {[%clk 0:02:57]}  a6 {[%clk 0:02:26]} 9. b3 {[%clk 0:02:52]}  cxb3 {[%clk 0:02:23]} 10. Qxb3 {[%clk 0:02:46]}  b4 {[%clk 0:02:23]} 11. a5 {[%clk 0:02:42]}  Nbd7 {[%clk 0:02:10]} 12. Nxc6 {[%clk 0:02:27]}  Qc8 {[%clk 0:02:10]} 13. Ne5 {[%clk 0:02:15]}  Bxg2 {[%clk 0:02:10]} 14. Kxg2 {[%clk 0:02:16]}  Nxe5 {[%clk 0:02:09]} 15. dxe5 {[%clk 0:02:15]}  Nd7 {[%clk 0:02:09]} 16. Bb2 {[%clk 0:02:09]}  Qb7+ {[%clk 0:02:05]} 17. Kg1 {[%clk 0:02:09]}  Be7 {[%clk 0:02:04]} 18. Nd2 {[%clk 0:02:07]}  O-O {[%clk 0:02:03]} 19. Rac1 {[%clk 0:02:01]}  Rac8 {[%clk 0:02:02]} 20. Nc4 {[%clk 0:01:56]}  Qb5 {[%clk 0:02:00]} 21. Rfd1 {[%clk 0:01:47]}  Nc5 {[%clk 0:01:58]} 22. Qe3 {[%clk 0:01:33]}  Na4 {[%clk 0:01:57]} 23. Qb3 {[%clk 0:01:27]}  Nxb2 {[%clk 0:01:55]} 24. Nxb2 {[%clk 0:01:26]}  Qxa5 {[%clk 0:01:33]} 25. Nc4 {[%clk 0:01:22]}  Qb5 {[%clk 0:01:33]} 26. Nd6 {[%clk 0:01:19]}  Bxd6 {[%clk 0:01:30]} 27. exd6 {[%clk 0:01:16]}  Rxc1 {[%clk 0:01:28]} 28. Rxc1 {[%clk 0:01:16]}  Rd8 {[%clk 0:01:28]} 29. Rd1 {[%clk 0:01:11]}  a5 {[%clk 0:01:24]} 30. Qc2 {[%clk 0:01:09]}  h6 {[%clk 0:01:22]} 31. Qc7 {[%clk 0:01:07]}  Rd7 {[%clk 0:01:17]} 32. Qc8+ {[%clk 0:01:06]}  Kh7 {[%clk 0:01:17]} 33. Qe8 {[%clk 0:01:04]}  b3 {[%clk 0:01:12]} 34. Qc8 {[%clk 0:00:54]}  a4 {[%clk 0:01:08]} 35. h4 {[%clk 0:00:50]}  a3 {[%clk 0:01:06]} 36. Qc3 {[%clk 0:00:49]}  b2 {[%clk 0:00:57]} 37. Qc2+ {[%clk 0:00:48]}  f5 {[%clk 0:00:56]} 38. e4 {[%clk 0:00:41]}  Rxd6 {[%clk 0:00:55]} 39. Rxd6 {[%clk 0:00:34]}  b1=Q+ {[%clk 0:00:55]} 0-1


[Site "https://www.chess.com"]

[Event "Titled Tuesday Blitz June 20 Late 2023"]
[White "Fishbein, Alexander"]
[Black "Figorito, Nick"]
[WhiteFideId "2000377"]
[BlackFideId "30923689"]
[WhiteElo "2403"]
[BlackElo "2371"]
[Result "0-1"]
[Round "2"]
[TimeControl "180+2"]
[Date "2023.06.20"]
[WhiteClock "0:00:00"]
[BlackClock "0:00:08"]
[Board "101"]

1. e4 {[%clk 0:03:00]}  e6 {[%clk 0:03:00]} 2. d4 {[%clk 0:03:00]}  d5 {[%clk 0:03:01]} 3. exd5 {[%clk 0:02:59]}  exd5 {[%clk 0:03:01]} 4. Nf3 {[%clk 0:02:58]}  Bd6 {[%clk 0:03:02]} 5. c4 {[%clk 0:02:58]}  Nf6 {[%clk 0:03:01]} 6. Bg5 {[%clk 0:02:55]}  O-O {[%clk 0:02:58]} 7. cxd5 {[%clk 0:02:55]}  Re8+ {[%clk 0:02:39]} 8. Be2 {[%clk 0:02:53]}  Qe7 {[%clk 0:02:39]} 9. Nc3 {[%clk 0:02:51]}  Bb4 {[%clk 0:02:35]} 10. Bxf6 {[%clk 0:02:41]}  gxf6 {[%clk 0:02:34]} 11. Rc1 {[%clk 0:02:19]}  Bg4 {[%clk 0:02:28]} 12. Qd3 {[%clk 0:02:02]}  Nd7 {[%clk 0:02:10]} 13. a3 {[%clk 0:02:00]}  Bxc3+ {[%clk 0:02:09]} 14. Rxc3 {[%clk 0:01:59]}  Nb6 {[%clk 0:02:04]} 15. Rc5 {[%clk 0:01:39]}  Rad8 {[%clk 0:01:57]} 16. h3 {[%clk 0:01:22]}  Bf5 {[%clk 0:01:32]} 17. Qe3 {[%clk 0:01:10]}  Qxe3 {[%clk 0:01:19]} 18. fxe3 {[%clk 0:01:10]}  Nxd5 {[%clk 0:01:17]} 19. Kf2 {[%clk 0:01:02]}  c6 {[%clk 0:01:11]} 20. Nh4 {[%clk 0:00:48]}  Bg6 {[%clk 0:01:01]} 21. Nxg6 {[%clk 0:00:41]}  hxg6 {[%clk 0:01:01]} 22. Re1 {[%clk 0:00:39]}  Nxe3 {[%clk 0:00:58]} 23. Bf3 {[%clk 0:00:38]}  Nf5 {[%clk 0:00:52]} 24. Rxe8+ {[%clk 0:00:36]}  Rxe8 {[%clk 0:00:53]} 25. d5 {[%clk 0:00:35]}  cxd5 {[%clk 0:00:49]} 26. Bxd5 {[%clk 0:00:35]}  Re7 {[%clk 0:00:46]} 27. Rc3 {[%clk 0:00:22]}  Nd6 {[%clk 0:00:42]} 28. Re3 {[%clk 0:00:20]}  Rc7 {[%clk 0:00:32]} 29. Bb3 {[%clk 0:00:18]}  Nf5 {[%clk 0:00:31]} 30. Rd3 {[%clk 0:00:17]}  Kg7 {[%clk 0:00:31]} 31. g4 {[%clk 0:00:17]}  Ne7 {[%clk 0:00:29]} 32. Ke3 {[%clk 0:00:15]}  Nc6 {[%clk 0:00:30]} 33. Bd5 {[%clk 0:00:14]}  Re7+ {[%clk 0:00:26]} 34. Kf4 {[%clk 0:00:12]}  Ne5 {[%clk 0:00:24]} 35. Rb3 {[%clk 0:00:12]}  g5+ {[%clk 0:00:24]} 36. Kg3 {[%clk 0:00:11]}  b6 {[%clk 0:00:24]} 37. Rc3 {[%clk 0:00:10]}  Ng6 {[%clk 0:00:22]} 38. Bf3 {[%clk 0:00:04]}  Nf4 {[%clk 0:00:22]} 39. h4 {[%clk 0:00:03]}  Ne6 {[%clk 0:00:19]} 40. h5 {[%clk 0:00:03]}  Nf4 {[%clk 0:00:19]} 41. Rc2 {[%clk 0:00:02]}  Ne6 {[%clk 0:00:17]} 42. Rc3 {[%clk 0:00:02]}  Nd4 {[%clk 0:00:17]} 43. Rd3 {[%clk 0:00:02]}  Nxf3 {[%clk 0:00:12]} 44. Kxf3 {[%clk 0:00:03]}  Rc7 {[%clk 0:00:11]} 45. Rd6 {[%clk 0:00:03]}  Rc2 {[%clk 0:00:10]} 46. b4 {[%clk 0:00:02]}  Rc3+ {[%clk 0:00:10]} 47. Ke4 {[%clk 0:00:02]}  Rc4+ {[%clk 0:00:09]} 48. Kd5 {[%clk 0:00:02]}  Rxg4 {[%clk 0:00:09]} 49. Rd7 {[%clk 0:00:02]}  Rh4 {[%clk 0:00:07]} 50. Rxa7 {[%clk 0:00:02]}  Rxh5 {[%clk 0:00:08]} 51. a4 {[%clk 0:00:01]}  g4+ {[%clk 0:00:08]} 52. Ke4 {[%clk 0:00:02]}  Rg5 {[%clk 0:00:08]} 53. Ke3 {[%clk 0:00:00]}  g3 {[%clk 0:00:08]} 0-1


[Site "https://www.chess.com"]

[Event "Titled Tuesday Blitz June 20 Late 2023"]
[White "Vaglio Munoz, Jaime"]
[Black "Gubajdullin, Alexei"]
[WhiteFideId "6500145"]
[BlackFideId "4141202"]
[WhiteElo "2199"]
[BlackElo "2279"]
[Result "1/2-1/2"]
[Round "2"]
[TimeControl "180+2"]
[Date "2023.06.20"]
[WhiteClock "0:00:57"]
[BlackClock "0:00:43"]
[Board "102"]

1. Nf3 {[%clk 0:03:00]}  Nf6 {[%clk 0:02:53]} 2. c4 {[%clk 0:02:59]}  g6 {[%clk 0:02:53]} 3. b3 {[%clk 0:02:59]}  Bg7 {[%clk 0:02:53]} 4. Bb2 {[%clk 0:03:00]}  O-O {[%clk 0:02:53]} 5. g3 {[%clk 0:03:00]}  d6 {[%clk 0:02:53]} 6. d4 {[%clk 0:02:59]}  Ne4 {[%clk 0:02:51]} 7. Nfd2 {[%clk 0:02:54]}  Nxd2 {[%clk 0:02:48]} 8. Qxd2 {[%clk 0:02:53]}  c5 {[%clk 0:02:39]} 9. Bg2 {[%clk 0:02:46]}  Nc6 {[%clk 0:02:37]} 10. d5 {[%clk 0:02:45]}  Bxb2 {[%clk 0:02:25]} 11. Qxb2 {[%clk 0:02:46]}  Qa5+ {[%clk 0:02:21]} 12. Qd2 {[%clk 0:02:35]}  Qxd2+ {[%clk 0:02:19]} 13. Kxd2 {[%clk 0:02:34]}  Nd4 {[%clk 0:02:11]} 14. e3 {[%clk 0:02:29]}  Nf5 {[%clk 0:02:10]} 15. h4 {[%clk 0:02:22]}  h5 {[%clk 0:02:00]} 16. Nc3 {[%clk 0:02:20]}  Bd7 {[%clk 0:01:59]} 17. a4 {[%clk 0:02:18]}  Rab8 {[%clk 0:01:57]} 18. Bh3 {[%clk 0:02:04]}  Rfd8 {[%clk 0:01:55]} 19. Bxf5 {[%clk 0:02:03]}  Bxf5 {[%clk 0:01:55]} 20. e4 {[%clk 0:02:03]}  Bg4 {[%clk 0:01:54]} 21. Ke3 {[%clk 0:02:02]}  b6 {[%clk 0:01:47]} 22. f3 {[%clk 0:02:02]}  Bd7 {[%clk 0:01:46]} 23. Rhg1 {[%clk 0:01:57]}  a6 {[%clk 0:01:46]} 24. g4 {[%clk 0:01:57]}  hxg4 {[%clk 0:01:45]} 25. fxg4 {[%clk 0:01:58]}  b5 {[%clk 0:01:42]} 26. axb5 {[%clk 0:01:52]}  axb5 {[%clk 0:01:41]} 27. h5 {[%clk 0:01:40]}  bxc4 {[%clk 0:01:35]} 28. bxc4 {[%clk 0:01:41]}  Rb2 {[%clk 0:01:34]} 29. hxg6 {[%clk 0:01:40]}  fxg6 {[%clk 0:01:34]} 30. e5 {[%clk 0:01:37]}  Rb3 {[%clk 0:01:28]} 31. Kd2 {[%clk 0:01:20]}  Rdb8 {[%clk 0:01:22]} 32. e6 {[%clk 0:01:17]}  Be8 {[%clk 0:01:21]} 33. g5 {[%clk 0:01:16]}  Rb2+ {[%clk 0:01:18]} 34. Kd3 {[%clk 0:01:14]}  Rh2 {[%clk 0:01:16]} 35. Rgb1 {[%clk 0:00:59]}  Rh3+ {[%clk 0:01:05]} 36. Kd2 {[%clk 0:00:58]}  Rh2+ {[%clk 0:00:51]} 37. Kd3 {[%clk 0:00:58]}  Rh3+ {[%clk 0:00:50]} 38. Kd2 {[%clk 0:00:58]}  Rh2+ {[%clk 0:00:43]} 39. Kd3 {[%clk 0:00:57]} 1/2-1/2


[Site "https://www.chess.com"]

[Event "Titled Tuesday Blitz June 20 Late 2023"]
[White "Jarmula, Lukasz"]
[Black "Schut, Han"]
[WhiteFideId "1160664"]
[BlackFideId "1005561"]
[WhiteElo "2372"]
[BlackElo "2024"]
[Result "1-0"]
[Round "2"]
[TimeControl "180+2"]
[Date "2023.06.20"]
[WhiteClock "0:02:31"]
[BlackClock "0:01:02"]
[Board "103"]

1. Nf3 {[%clk 0:03:00]}  Nf6 {[%clk 0:02:59]} 2. e3 {[%clk 0:02:59]}  g6 {[%clk 0:03:00]} 3. b4 {[%clk 0:02:59]}  Bg7 {[%clk 0:02:59]} 4. Bb2 {[%clk 0:02:59]}  d5 {[%clk 0:02:59]} 5. Be2 {[%clk 0:02:59]}  O-O {[%clk 0:02:59]} 6. O-O {[%clk 0:02:59]}  a5 {[%clk 0:02:57]} 7. b5 {[%clk 0:02:59]}  c5 {[%clk 0:02:57]} 8. c4 {[%clk 0:02:56]}  dxc4 {[%clk 0:02:52]} 9. Bxc4 {[%clk 0:02:55]}  b6 {[%clk 0:02:52]} 10. d4 {[%clk 0:02:54]}  cxd4 {[%clk 0:02:45]} 11. Bxd4 {[%clk 0:02:51]}  Bb7 {[%clk 0:02:40]} 12. Nc3 {[%clk 0:02:51]}  Nbd7 {[%clk 0:02:39]} 13. Na4 {[%clk 0:02:51]}  Ng4 {[%clk 0:01:53]} 14. Bxg7 {[%clk 0:02:45]}  Kxg7 {[%clk 0:01:53]} 15. Qd4+ {[%clk 0:02:45]}  Ngf6 {[%clk 0:01:52]} 16. Rfd1 {[%clk 0:02:42]}  Bxf3 {[%clk 0:01:41]} 17. gxf3 {[%clk 0:02:42]}  Rc8 {[%clk 0:01:27]} 18. Bf1 {[%clk 0:02:39]}  Qe8 {[%clk 0:01:12]} 19. Nxb6 {[%clk 0:02:32]}  Nxb6 {[%clk 0:01:09]} 20. Qxb6 {[%clk 0:02:32]}  Rb8 {[%clk 0:01:08]} 21. Qxa5 {[%clk 0:02:31]}  Rxb5 {[%clk 0:01:02]} 22. Qxb5 {[%clk 0:02:31]} 1-0


[Site "https://www.chess.com"]